bitfinex-derivatives/quotes_SOLF0:USTF0_20230103
["timestamp","ask_amount","ask_price","bid_price","bid_amount"]
[1672738792151,48.90599163,11.74,11.739,0.04412062]
[1672738796670,50.3794619,11.746,11.739,0.04412062]
[1672738802030,48.90599163,11.75,11.74,16.86]
[1672738802343,48.90599163,11.75,11.742,16.78]
[1672738802553,48.90599163,11.75,11.743,4.0]
[1672738804659,48.90599163,11.75,11.743,3.78428783]
[1672738806760,48.90599163,11.75,11.742,16.78]
[1672738808546,48.90599163,11.75,11.741,0.06783197]
[1672738809384,46.2796,11.749,11.741,0.06783197]
[1672738817691,46.13087185,11.749,11.741,0.06783197]
[1672738832409,45.94144672,11.749,11.741,0.06783197]
[1672738833459,45.94144672,11.749,11.742,16.95]
[1672738833667,48.90599163,11.75,11.744,16.95]
[1672738834191,48.90599163,11.75,11.745,4.0]
[1672738835244,48.90599163,11.75,11.744,16.95]
[1672738836610,16.95,11.758,11.744,16.95]
[1672738836924,16.95,11.758,11.747,0.06055034]
[1672738837871,4.0,11.756,11.747,0.06055034]
[1672738838289,48.90599163,11.75,11.747,0.06055034]
[1672738838500,48.90599163,11.75,11.745,4.0]
[1672738839236,48.90599163,11.75,11.745,20.91]
[1672738839549,48.90599163,11.75,11.745,16.91]
[1672738843228,49.0996,11.757,11.745,16.91]
[1672738843439,48.90599163,11.75,11.747,0.06361643]
[1672738843651,48.90599163,11.75,11.746,4.0]
[1672738843855,49.0996,11.757,11.747,16.8]
[1672738844070,49.0996,11.757,11.75,16.87]
[1672738844598,49.0996,11.757,11.751,4.0]
[1672738845227,48.90599163,11.76,11.751,4.0]
[1672738845435,48.90599163,11.76,11.753,16.91]
[1672738845646,48.90599163,11.76,11.755,16.91]
[1672738845857,48.73552462,11.76,11.756,4.0]
[1672738847118,48.73552462,11.76,11.755,16.91]
[1672738848273,48.73552462,11.76,11.755,1016.91]
[1672738848478,16.91,11.766,11.755,1016.91]
[1672738848687,48.73552462,11.759,11.756,4.06632523]
[1672738849007,16.91,11.766,11.756,4.0]
[1672738849219,16.91,11.766,11.757,0.06833976]
[1672738851004,48.73552462,11.759,11.757,0.06833976]
[1672738851318,48.73552462,11.759,11.755,1016.91]
[1672738852158,16.91,11.766,11.755,1016.91]
[1672738852473,16.91,11.766,11.756,4.06645073]
[1672738853735,95.97022462,11.769,11.757,16.91]
[1672738853943,95.97022462,11.769,11.759,0.07001121]
[1672738855207,67.63,11.784,11.772,312.11977538]
[1672738855419,66.91,11.773,11.757,16.91]
[1672738855732,66.85,11.77,11.761,0.07059042]
[1672738855943,66.85,11.77,11.761,0.06799392]
[1672738858152,16.85,11.77,11.761,0.06799392]
[1672738858364,5.0,11.777,11.761,16.97799392]
[1672738858365,16.91,11.773,11.761,16.97799392]
[1672738858676,16.91,11.773,11.763,0.06229299]
[1672738860991,5.0,11.774,11.763,0.06229299]
[1672738861196,5.0,11.774,11.764,0.06533617]
[1672738861722,16.91,11.772,11.764,0.06533617]
[1672738861937,5.0,11.774,11.764,0.06533617]
[1672738861938,5.0,11.768,11.764,0.06533617]
[1672738862560,16.91,11.769,11.764,0.06533617]
[1672738866878,16.87,11.77,11.764,0.06533617]
[1672738867082,66.87,11.77,11.764,0.06533617]
[1672738869086,66.66844003,11.77,11.764,0.06533617]
[1672738878333,16.66844003,11.77,11.764,0.06533617]
[1672738878543,16.77,11.774,11.764,0.06533617]
[1672738884215,16.57164003,11.774,11.764,0.06533617]
[1672738888000,16.85,11.782,11.769,16.87]
[1672738888205,50.0,11.78,11.77,5.0]
[1672738889470,50.0,11.78,11.771,0.06799365]
[1672738893256,50.0,11.78,11.771,16.97799365]
[1672738893469,49.8461,11.781,11.771,16.97799365]
[1672738894410,50.0,11.78,11.771,16.97799365]
[1672738895253,16.91,11.786,11.772,5.0]
[1672738895463,5.0,11.785,11.775,0.06845793]
[1672738895673,5.0,11.785,11.775,5.06845793]
[1672738895886,16.91,11.786,11.775,5.06845793]
[1672738897459,16.76233321,11.786,11.775,5.06845793]
[1672738899245,16.76233321,11.786,11.775,0.06845793]
[1672738900296,16.76233321,11.786,11.775,5.06845793]
[1672738901872,47.2094,11.788,11.776,16.91]
[1672738902186,47.2094,11.788,11.778,0.07058196]
[1672738904814,16.91,11.786,11.778,0.07058196]
[1672738905021,5.0,11.785,11.778,0.07058196]
[1672738905438,16.91,11.786,11.778,0.07058196]
[1672738908810,47.2094,11.788,11.779,16.91]
[1672738909125,47.2094,11.788,11.78,5.0]
[1672738909648,16.83,11.797,11.785,16.91]
[1672738909858,50.0,11.791,11.787,0.06549305]
[1672738910069,16.87,11.789,11.785,0.06278143]
[1672738910283,16.80343213,11.789,11.783,0.064677]
[1672738910485,50.0,11.791,11.777,5.0]
[1672738910486,21.81,11.788,11.782,0.06106898]
[1672738910699,21.81,11.788,11.781,0.06562671]
[1672738910906,5.0,11.787,11.78,0.06278184]
[1672738911227,16.81,11.788,11.78,0.06278184]
[1672738911440,16.83,11.789,11.78,0.06278184]
[1672738911753,5.0,11.788,11.78,0.06278184]
[1672738911957,21.83,11.789,11.78,0.06278184]
[1672738912171,16.83,11.789,11.78,0.06278184]
[1672738914486,5.0,11.788,11.78,0.06278184]
[1672738914801,16.91,11.787,11.78,8.184e-05]
[1672738915011,16.91,11.787,11.774,16.91]
[1672738915012,5.0,11.786,11.774,16.91]
[1672738916064,0.06827875,11.784,11.776,0.06803009]
[1672738924262,0.06827875,11.784,11.777,16.79]
[1672738924471,0.06827875,11.784,11.778,5.0]
[1672738927093,0.06827875,11.784,11.777,16.79]
[1672738927621,0.06827875,11.784,11.776,0.06803009]
[1672738929404,5.0,11.787,11.784,0.04428586]
[1672738929618,4.0,11.786,11.777,5.0]
[1672738929826,4.0,11.786,11.772,21.83]
[1672738930350,4.0,11.786,11.775,0.06938668]
[1672738932033,4.0,11.787,11.775,0.06938668]
[1672738932663,20.91,11.788,11.775,0.06938668]
[1672738932980,20.91,11.788,11.777,0.06884592]
[1672738933818,16.91,11.788,11.777,0.06884592]
[1672738935816,47.7699,11.787,11.777,0.06884592]
[1672738936026,4.0,11.786,11.777,0.06884592]
[1672738939387,20.85,11.786,11.777,0.06884592]
[1672738940125,20.85,11.786,11.777,4.592e-05]
[1672738940126,50.0,11.781,11.777,4.592e-05]
[1672738940328,16.91,11.78,11.777,4.592e-05]
[1672738940539,4.0,11.779,11.768,16.8]
[1672738940960,0.06977981,11.778,11.768,16.8]
[1672738941166,0.06977981,11.778,11.769,4.06313378]
[1672738943062,0.06977981,11.778,11.769,0.06313378]
[1672738946527,0.06977981,11.778,11.769,4.06313378]
[1672738946844,0.06977981,11.778,11.772,4.0]
[1672738949258,0.06977981,11.778,11.771,16.87]
[1672738952728,0.06977981,11.778,11.775,16.91]
[1672738952937,0.06732262,11.781,11.776,4.0]
[1672738953148,0.06228746,11.783,11.776,4.0]
[1672738953674,4.0,11.783,11.775,16.97750018]
[1672738953882,4.0,11.783,11.775,0.06750018]
[1672738954724,4.0,11.784,11.775,0.06750018]
[1672738955145,46.4677,11.785,11.775,0.06750018]
[1672738955461,46.4677,11.785,11.775,17.05750018]
[1672738956407,46.4677,11.785,11.775,16.9218847]
[1672738956822,17.0,11.788,11.775,16.9218847]
[1672738957036,21.0,11.79,11.775,16.9218847]
[1672738957560,0.06229774,11.787,11.778,0.06149107]
[1672738969326,17.0,11.79,11.787,0.11477391]
[1672738969537,4.0,11.789,11.778,4.0]
[1672738970378,4.0,11.789,11.779,0.06318637]
[1672738971848,17.0,11.79,11.779,0.06318637]
[1672738978052,50.0,11.791,11.779,17.06318637]
[1672738978991,50.0,11.791,11.78,16.98]
[1672738979203,50.0,11.791,11.781,4.06931014]
[1672738980472,50.0,11.791,11.781,0.06931014]
[1672738982364,49.76490768,11.791,11.781,4.06931014]
[1672738983731,16.82,11.793,11.781,4.06931014]
[1672738983937,16.96,11.798,11.785,16.96]
[1672738984147,4.0,11.797,11.787,0.06674576]
[1672738984886,16.96,11.798,11.787,0.06674576]
[1672738985414,20.96,11.8,11.787,16.94674576]
[1672738985624,20.96,11.8,11.789,0.07082473]
[1672738986147,16.96,11.8,11.789,0.07082473]
[1672738990984,49.76490768,11.801,11.789,17.03082473]
[1672738991190,49.76490768,11.801,11.792,4.0]
[1672738991403,49.76490768,11.801,11.792,4.07118413]
[1672738993502,49.0521,11.803,11.792,4.07118413]
[1672738993712,49.76490768,11.802,11.792,4.07118413]
[1672738993924,4.0,11.801,11.792,4.07118413]
[1672738994237,49.76490768,11.802,11.792,4.07118413]
[1672738995079,49.76490768,11.802,11.792,0.07118413]
[1672738997179,49.57007708,11.802,11.792,4.07118413]
[1672739000540,49.57007708,11.802,11.792,0.07118413]
[1672739002218,49.0521,11.803,11.792,0.07118413]
[1672739002745,4.0,11.801,11.792,0.07118413]
[1672739003169,49.0521,11.803,11.792,0.07118413]
[1672739003695,49.57007708,11.802,11.792,0.07118413]
[1672739003906,4.0,11.801,11.792,0.07118413]
[1672739004221,53.57007708,11.802,11.792,0.07118413]
[1672739004425,49.57007708,11.802,11.792,0.07118413]
[1672739004637,49.0521,11.803,11.792,0.07118413]
[1672739005270,49.57007708,11.802,11.792,0.07118413]
[1672739005480,4.0,11.801,11.792,0.07118413]
[1672739006109,16.87,11.807,11.793,16.96]
[1672739006316,4.0,11.806,11.796,0.06330571]
[1672739007586,50.0315,11.806,11.796,0.06330571]
[1672739009369,16.95,11.802,11.796,0.06330571]
[1672739009681,16.96,11.8,11.796,0.06330571]
[1672739009892,4.0,11.799,11.796,0.06330571]
[1672739010101,4.0,11.799,11.793,0.06134014]
[1672739011153,16.96,11.8,11.793,0.06134014]
[1672739011782,16.85132427,11.8,11.793,0.06134014]
[1672739012203,16.96,11.799,11.793,0.06134014]
[1672739012412,4.0,11.798,11.793,0.06134014]
[1672739012622,4.0,11.798,11.793,4.014e-05]
[1672739012832,4.0,11.798,11.787,16.96]
[1672739013042,16.96,11.795,11.782,4.0]
[1672739013359,4.0,11.794,11.791,0.42992292]
[1672739013783,16.96,11.795,11.788,0.06324789]
[1672739014095,16.96,11.795,11.791,0.42992292]
[1672739014831,4.0,11.794,11.787,0.06612066]
[1672739015350,4.0,11.79,11.787,0.06612066]
[1672739015566,4.0,11.79,11.784,0.07129273]
[1672739015772,4.0,11.79,11.783,0.06599386]
[1672739015979,16.8752384,11.791,11.783,0.06599386]
[1672739020084,16.9952384,11.791,11.783,0.06599386]
[1672739022921,0.13873,11.783,11.778,16.87]
[1672739027541,3e-05,11.783,11.778,16.87]
[1672739027754,0.06251184,11.785,11.779,4.0]
[1672739029536,0.06251184,11.785,11.778,16.87]
[1672739037316,0.06251184,11.785,11.781,16.98]
[1672739040572,50.6176,11.792,11.785,0.14863305]
[1672739054021,50.52696867,11.792,11.785,0.14863305]
[1672739068533,50.29905684,11.792,11.785,0.14863305]
[1672739074097,4.0,11.791,11.785,0.08109326]
[1672739077986,54.29905684,11.792,11.785,0.08109326]
[1672739078196,50.29905684,11.792,11.785,0.08109326]
[1672739087863,50.15862089,11.792,11.785,0.08109326]
[1672739096260,16.91,11.789,11.785,0.08109326]
[1672739096475,20.98,11.788,11.775,16.9]
[1672739096689,20.98,11.788,11.776,4.0]
[1672739097000,4.0,11.787,11.776,4.0]
[1672739097209,4.0,11.787,11.775,16.9]
[1672739097419,54.8549,11.787,11.773,20.93]
[1672739097630,0.06412403,11.784,11.777,0.06838693]
[1672739102886,50.06412403,11.784,11.777,0.06838693]
[1672739104462,0.06412403,11.784,11.777,0.06838693]
[1672739105300,50.06412403,11.784,11.777,0.06838693]
[1672739106456,0.06412403,11.784,11.777,0.06838693]
[1672739106666,16.98,11.783,11.777,0.06838693]
[1672739106876,4.0,11.782,11.777,0.06838693]
[1672739109508,3.85663395,11.782,11.777,0.06838693]
[1672739110661,16.98,11.781,11.777,0.06838693]
[1672739110870,4.0,11.78,11.777,0.06838693]
[1672739111080,4.0,11.78,11.774,0.07103848]
[1672739111288,4.0,11.78,11.773,0.06129647]
[1672739111496,4.0,11.78,11.772,0.07056869]
[1672739111709,4.06790514,11.78,11.772,0.07056869]
[1672739112973,0.06790514,11.78,11.772,0.07056869]
[1672739113280,782.71047545,11.832,11.779,16.98]
[1672739113281,16.85,11.798,11.779,16.98]
[1672739113491,4.0,11.793,11.784,16.89]
[1672739113703,4.0,11.793,11.785,4.0]
[1672739114335,4.07110656,11.793,11.785,4.06930923]
[1672739114547,4.07110656,11.793,11.785,0.06930923]
[1672739114856,4.0,11.791,11.785,0.06930923]
[1672739117069,20.98,11.792,11.785,0.06930923]
[1672739118958,16.98,11.792,11.785,0.06930923]
[1672739122525,0.07110656,11.793,11.785,0.06930923]
[1672739122743,16.91,11.801,11.788,16.85]
[1672739123054,4.0,11.8,11.789,4.0]
[1672739123792,4.0,11.8,11.79,0.06558753]
[1672739125468,16.91,11.801,11.79,0.06558753]
[1672739125681,16.98,11.803,11.79,16.88558753]
[1672739125894,4.0,11.802,11.792,0.06975848]
[1672739126313,16.98,11.803,11.792,0.06975848]
[1672739126527,50.0,11.804,11.792,0.06975848]
[1672739126738,50.0,11.804,11.794,0.06731616]
[1672739126739,4.0,11.803,11.794,0.06731616]
[1672739127265,50.0,11.804,11.794,0.06731616]
[1672739127476,313.08419018,11.843,11.794,0.06731616]
[1672739127477,16.98,11.812,11.798,16.82]
[1672739127687,50.2395,11.811,11.801,0.06036699]
[1672739128002,4.0,11.81,11.801,0.06036699]
[1672739128525,46.2395,11.811,11.801,0.06036699]
[1672739128737,16.98,11.808,11.801,0.06036699]
[1672739128945,4.0,11.803,11.801,0.06036699]
[1672739129150,4.0,11.803,11.798,0.06001582]
[1672739129357,4.0,11.803,11.796,0.06892363]
[1672739129578,50.0,11.804,11.796,0.06892363]
[1672739130313,4.0,11.807,11.796,0.06892363]
[1672739131151,16.98,11.808,11.796,0.06892363]
[1672739136720,50.0,11.804,11.796,0.06892363]
[1672739137145,4.0,11.803,11.796,0.06892363]
[1672739137354,3.8996188,11.803,11.796,0.06892363]
[1672739139666,50.0,11.804,11.796,0.06892363]
[1672739140192,4.0,11.803,11.796,0.06892363]
[1672739141026,50.0,11.804,11.796,0.06892363]
[1672739143975,20.85,11.805,11.796,0.06892363]
[1672739144183,16.85,11.805,11.796,0.06892363]
[1672739144914,66.85,11.805,11.796,0.06892363]
[1672739146806,16.98,11.807,11.796,0.06892363]
[1672739147124,686.61419018,11.846,11.796,17.04892363]
[1672739147125,4.0,11.806,11.796,17.04892363]
[1672739147334,4.0,11.807,11.796,17.04892363]
[1672739147964,16.98,11.808,11.796,17.04892363]
[1672739148387,20.85,11.81,11.796,17.04892363]
[1672739148595,20.85,11.81,11.799,0.06065327]
[1672739149123,16.85,11.81,11.799,0.06065327]
[1672739149648,16.65244577,11.81,11.799,0.06065327]
[1672739151751,47.729,11.811,11.799,17.04065327]
[1672739153746,47.729,11.811,11.801,16.98]
[1672739153954,47.729,11.811,11.802,4.0]
[1672739154167,16.98,11.813,11.802,4.06497263]
[1672739154377,16.98,11.822,11.808,16.93]
[1672739154588,16.98,11.822,11.811,0.06484439]
[1672739154589,50.7812,11.821,11.811,0.06484439]
[1672739154903,4.0,11.82,11.811,17.04484439]
[1672739155112,4.0,11.82,11.812,4.0]
[1672739155323,46.7812,11.821,11.812,4.0]
[1672739156262,50.0,11.825,11.812,4.0]
[1672739156263,50.0,11.825,11.815,16.89]
[1672739156582,50.7812,11.824,11.816,4.06566838]
[1672739156998,50.7812,11.824,11.816,0.06566838]
[1672739157416,46.7812,11.824,11.816,0.06566838]
[1672739158996,4.0,11.823,11.816,0.06566838]
[1672739160155,46.7812,11.824,11.816,0.06566838]
[1672739160363,66.89,11.825,11.816,0.06566838]
[1672739160574,50.0,11.825,11.816,0.06566838]
[1672739161415,4.0,11.824,11.816,0.06566838]
[1672739163096,3.88564965,11.824,11.816,0.06566838]
[1672739164775,70.77,11.825,11.816,0.06566838]
[1672739164985,66.77,11.825,11.816,0.06566838]
[1672739166459,50.0,11.825,11.816,0.06566838]
[1672739168558,66.89,11.825,11.816,0.06566838]
[1672739168874,16.89,11.823,11.816,0.06566838]
[1672739169083,4.0,11.822,11.816,0.06566838]
[1672739169497,16.89,11.823,11.816,0.06566838]
[1672739170239,46.0383,11.824,11.816,0.06566838]
[1672739173596,16.76,11.832,11.818,16.89]
[1672739173810,50.0,11.835,11.822,16.89]
[1672739173811,4.0,11.833,11.822,16.89]
[1672739174022,4.0,11.833,11.823,4.0663545]
[1672739174231,16.89,11.832,11.824,0.07057583]
[1672739174443,4.0,11.831,11.824,0.07057583]
[1672739175492,16.89,11.832,11.824,0.07057583]
[1672739175912,16.79046776,11.832,11.824,0.07057583]
[1672739183164,50.0467,11.834,11.824,0.07057583]
[1672739183684,16.82,11.833,11.824,0.07057583]
[1672739183894,4.0,11.832,11.824,0.07057583]
[1672739184420,16.82,11.833,11.824,0.07057583]
[1672739184627,16.89,11.842,11.83,16.89]
[1672739184842,4.0,11.841,11.832,0.06947507]
[1672739185259,16.89,11.842,11.832,0.06947507]
[1672739185682,50.0,11.835,11.832,0.06947507]
[1672739186001,16.76,11.838,11.829,0.0637528]
[1672739186206,50.0,11.836,11.829,0.06309248]
[1672739186422,4.0,11.837,11.829,0.06309248]
[1672739186627,16.77,11.842,11.829,4.06309248]
[1672739186945,16.77,11.842,11.831,4.0]
[1672739187156,16.77,11.842,11.832,0.0608727]
[1672739187357,16.89,11.84,11.832,0.0608727]
[1672739187566,4.0,11.839,11.832,0.0608727]
[1672739187785,50.0,11.836,11.832,0.0608727]
[1672739187993,4.0,11.835,11.832,0.0608727]
[1672739188305,3.82370954,11.835,11.829,0.06883205]
[1672739188624,3.82370954,11.835,11.828,0.0609995]
[1672739189151,50.0,11.836,11.828,0.0609995]
[1672739191880,4.0,11.837,11.828,0.0609995]
[1672739192093,16.89,11.835,11.828,0.0609995]
[1672739192304,4.0,11.834,11.828,0.0609995]
[1672739193674,16.89,11.831,11.828,0.0609995]
[1672739193984,4.0,11.83,11.825,0.07017954]
[1672739194196,20.76,11.83,11.823,0.06414923]
[1672739194407,68.9218,11.83,11.822,0.06590894]
[1672739194615,4.0,11.825,11.822,0.06590894]
[1672739194829,4.0,11.825,11.819,0.06501758]
[1672739195036,4.0,11.825,11.818,0.06334426]
[1672739196300,54.0,11.826,11.818,0.06334426]
[1672739196615,4.0,11.826,11.818,0.06334426]
[1672739196930,54.0,11.826,11.818,0.06334426]
[1672739198925,16.72,11.825,11.818,0.06334426]
[1672739199135,4.0,11.824,11.818,0.06334426]
[1672739200295,49.9265,11.824,11.818,0.06334426]
[1672739202811,4.0,11.823,11.812,16.88]
[1672739203030,16.81,11.821,11.808,16.89]
[1672739203237,4.0,11.82,11.809,4.0]
[1672739203971,0.06858349,11.819,11.81,0.07119346]
[1672739204182,0.06858349,11.819,11.811,16.89]
[1672739204395,0.06858349,11.819,11.812,4.0]
[1672739205019,0.06858349,11.819,11.811,16.89]
[1672739210069,0.06858349,11.819,11.81,0.07119346]
[1672739211322,50.0,11.817,11.81,0.07119346]
[1672739211538,66.89,11.817,11.81,0.07119346]
[1672739211749,4.0,11.816,11.81,0.07119346]
[1672739212161,0.06858349,11.819,11.81,0.07119346]
[1672739215217,16.81,11.822,11.819,0.02977057]
[1672739215532,4.0,11.821,11.81,4.0]
[1672739215737,4.0,11.821,11.809,16.89]
[1672739216267,16.81,11.819,11.811,0.06814568]
[1672739216479,4.0,11.818,11.811,0.06814568]
[1672739217423,4.0,11.821,11.811,0.06814568]
[1672739218266,16.89,11.824,11.811,0.06814568]
[1672739218476,4.0,11.823,11.813,0.0630083]
[1672739220786,4.0,11.824,11.813,0.0630083]
[1672739220996,52.1835,11.824,11.813,0.0630083]
[1672739221312,48.1835,11.824,11.813,0.0630083]
[1672739228144,4.0,11.823,11.813,0.0630083]
[1672739228353,16.81,11.822,11.813,0.0630083]
[1672739228564,4.0,11.821,11.813,0.0630083]
[1672739229293,16.81,11.822,11.813,0.0630083]
[1672739230349,4.0,11.823,11.813,0.0630083]
[1672739230560,48.1835,11.824,11.813,0.0630083]
[1672739242329,48.05956286,11.824,11.813,0.0630083]
[1672739242644,48.05956286,11.824,11.813,4.0630083]
[1672739243062,48.05956286,11.824,11.813,0.0630083]
[1672739243381,0.05912539,11.813,11.812,16.89]
[1672739245166,0.05912539,11.813,11.808,0.06673041]
[1672739245167,0.05912539,11.813,11.81,16.89]
[1672739245377,4.0,11.812,11.795,49.7717]
[1672739245587,4.0,11.812,11.803,50.0]
[1672739246430,4.06816643,11.812,11.803,50.0654121]
[1672739248431,0.06816643,11.812,11.803,50.0654121]
[1672739250219,0.06816643,11.812,11.803,0.0654121]
[1672739250427,16.98816643,11.812,11.803,0.0654121]
[1672739250639,16.92,11.807,11.803,0.0654121]
[1672739250850,16.92,11.805,11.79,16.83]
[1672739251164,16.92,11.802,11.787,16.9]
[1672739251369,4.0,11.801,11.788,4.0]
[1672739251795,0.06888624,11.799,11.79,0.07059701]
[1672739252423,16.98888624,11.799,11.79,0.07059701]
[1672739252634,4.0,11.798,11.79,0.07059701]
[1672739253363,4.0,11.796,11.79,0.07059701]
[1672739255673,4.0,11.797,11.79,0.07059701]
[1672739256096,51.4538,11.798,11.79,0.07059701]
[1672739256308,4.0,11.798,11.79,0.07059701]
[1672739256619,17.03888624,11.799,11.79,0.07059701]
[1672739258098,0.06888624,11.799,11.795,16.97]
[1672739263668,4.0,11.807,11.799,0.1531958]
[1672739264824,4.06899176,11.807,11.799,0.22451847]
[1672739265770,0.06899176,11.807,11.799,0.22451847]
[1672739269971,0.06899176,11.807,11.799,17.10451847]
[1672739271335,0.06899176,11.807,11.799,0.22451847]
[1672739271554,0.06899176,11.807,11.8,16.87]
[1672739271866,0.06899176,11.807,11.801,4.0]
[1672739272604,16.86,11.819,11.805,16.97]
[1672739272811,16.86,11.819,11.807,16.82]
[1672739273651,0.070189,11.814,11.807,16.82]
[1672739274387,0.070189,11.814,11.806,0.06825238]
[1672739277957,16.92912539,11.813,11.806,0.06825238]
[1672739280790,16.95,11.81,11.806,0.06825238]
[1672739281004,4.0,11.809,11.806,0.06825238]
[1672739281210,4.0,11.809,11.799,0.1531958]
[1672739281429,16.97,11.802,11.799,0.1531958]
[1672739281635,16.97,11.802,11.8,0.06323355]
[1672739281845,16.86,11.804,11.799,0.1531958]
[1672739282583,0.06738126,11.806,11.799,0.1531958]
[1672739287305,16.95,11.808,11.806,0.14254239]
[1672739288047,4.0,11.807,11.799,0.1531958]
[1672739288464,4.0,11.807,11.799,0.22336199]
[1672739289303,16.95,11.806,11.799,0.22336199]
[1672739289519,4.0,11.805,11.799,0.22336199]
[1672739289833,4.0,11.805,11.799,0.07016619]
[1672739293396,16.97,11.804,11.799,6.619e-05]
[1672739293612,16.97,11.8,11.799,6.619e-05]
[1672739293823,16.97,11.8,11.786,20.97]
[1672739294027,4.0,11.799,11.786,20.97]
[1672739294446,4.0,11.799,11.788,0.06724557]
[1672739294661,0.06572364,11.797,11.788,0.06724557]
[1672739305698,16.97,11.792,11.788,0.06724557]
[1672739305909,4.0,11.791,11.788,0.06724557]
[1672739306120,4.0,11.791,11.785,0.06990618]
[1672739306329,4.0,11.791,11.784,0.06917033]
[1672739306535,4.0,11.791,11.783,0.06220323]
[1672739306751,4.0635121,11.791,11.783,0.06220323]
[1672739307066,3.97643186,11.791,11.783,0.06220323]
[1672739310009,0.0635121,11.791,11.783,0.06220323]
[1672739310635,0.0635121,11.791,11.784,50.0]
[1672739310956,0.0635121,11.791,11.785,4.0]
[1672739311897,0.0635121,11.791,11.784,20.97]
[1672739312216,0.0635121,11.791,11.784,16.97]
[1672739313267,0.0635121,11.791,11.784,66.97]
[1672739317786,0.0635121,11.791,11.784,50.0]
[1672739319357,4.0,11.795,11.791,0.05738881]
[1672739319565,16.97,11.793,11.791,0.05738881]
[1672739319787,4.0,11.792,11.777,16.81]
[1672739319996,16.97,11.79,11.778,4.0]
[1672739320306,4.0,11.789,11.778,4.0]
[1672739320511,4.0,11.789,11.78,0.0616632]
[1672739322200,16.97,11.79,11.78,0.0616632]
[1672739322825,16.95,11.792,11.78,0.0616632]
[1672739323041,4.0,11.791,11.78,17.0316632]
[1672739325034,16.95,11.792,11.78,17.0316632]
[1672739325240,16.97,11.793,11.78,17.0316632]
[1672739325453,4.0,11.792,11.782,0.0714371]
[1672739328821,16.97,11.793,11.782,0.0714371]
[1672739329023,47.1889,11.796,11.785,16.81]
[1672739329239,47.1889,11.796,11.786,4.06867897]
[1672739330079,47.1889,11.796,11.786,0.06867897]
[1672739332494,47.05045589,11.796,11.786,4.06867897]
[1672739333337,47.05045589,11.796,11.786,0.06867897]
[1672739345630,16.97,11.799,11.786,0.06867897]
[1672739345945,16.97,11.799,11.788,0.07038406]
[1672739346888,16.74985584,11.799,11.788,0.07038406]
[1672739356660,16.97,11.801,11.788,0.07038406]
[1672739356877,47.0204,11.802,11.79,0.06104135]
[1672739357190,47.0204,11.802,11.79,4.06104135]
[1672739357395,47.0204,11.802,11.793,4.0]
[1672739357611,47.0204,11.802,11.793,4.06676298]
[1672739358663,47.0204,11.802,11.793,0.06676298]
[1672739360869,46.95247778,11.802,11.793,4.06676298]
[1672739361921,46.95247778,11.802,11.793,0.06676298]
[1672739368853,16.97,11.799,11.793,0.06676298]
[1672739369062,4.0,11.798,11.793,0.06676298]
[1672739370430,16.97,11.799,11.793,0.06676298]
[1672739373795,16.8,11.799,11.793,0.06676298]
[1672739374109,4.0,11.798,11.793,0.06676298]
[1672739375785,16.8,11.799,11.793,0.06676298]
[1672739381036,0.1707017,11.793,11.786,20.93]
[1672739381987,0.1707017,11.793,11.786,16.93]
[1672739382724,0.1707017,11.793,11.787,4.0]
[1672739385457,1.7e-06,11.793,11.789,16.95]
[1672739385668,63.91247778,11.802,11.79,4.0]
[1672739385875,117.40657132,11.839,11.79,4.0]
[1672739385876,16.96,11.809,11.796,16.95]
[1672739386187,4.0,11.808,11.797,4.0]
[1672739386717,4.0,11.808,11.798,0.06089333]
[1672739392499,16.96,11.809,11.798,0.06089333]